Cogmind - Beta 10.1 *** ADVENTURER MODE // 2020.10.10 @ 03:10:41 Player: FauxMaasks Result: Destroyed by Cetus Guard with Improved KE Penetrator Performance ------------- Evolutions (4) 2000 Regions Visited (14) 2800 Robots Destroyed (126) 630 Value Destroyed (4233) 4233 Prototype IDs (43) 860 Alien Tech Used (0) 0 Bonus (2546) 2546 TOTAL SCORE: 13069 Bonus ------- High Alert Combat Kills 471 Follower Combat Kills 1075 Entered Garrisons 200 Used RIF Installer 500 Aligned with FarCom 300 Cogmind --------- Core Integrity 0/850 Matter 273/300 Energy 100/100 System Corruption 5% Temperature Cool (0) Movement Flying (35) Location -6/Cetus Parts ------- > --- POWER (2) -------- (None) > --- PROPULSION (4) --- Improved Cesium-ion Thruster > --- UTILITY (7) ------ Hacking Suite System Shield Relay Coupler [Sentry] (27) > --- WEAPON (2) ------- Ripper > --- INVENTORY (4) ---- Improved Light Armor Plating Heavy Laser EM Pulse Cannon Phasing Sabre Peak State ------------ > --- POWER ------------ Light Deuterium Engine Light Fission Core > --- PROPULSION ------- Cesium-ion Thruster Improved Cesium-ion Thruster Improved Cesium-ion Thruster Improved Cesium-ion Thruster > --- UTILITY ---------- Medium Storage Unit Experimental Sensor Array Maneuvering Thrusters Hacking Suite Hacking Suite Relay Coupler [Grunt] Relay Coupler [Sentry] > --- WEAPON ----------- Great Axe > --- INVENTORY -------- Light Antimatter Reactor Cesium-ion Thruster Advanced Weight Redist. System Improved Light Armor Plating System Shield EM Pulse Cannon Improved Datajack [Rating: 55] Favorites ----------- Power Light Nuclear Core Engine Light Ion Engine Power Core Light Nuclear Core Reactor Light Antimatter Reactor Propulsion Light Treads Treads Light Treads Leg Carbon-fiber Leg Wheel Wheel Flight Unit Improved Cesium-ion Thruster Utility Large Storage Unit Device Maneuvering Thrusters Storage Large Storage Unit Processor Improved Signal Interpreter Hackware Hacking Suite Protection Light Armor Plating Weapon Autogun Energy Gun EM Pulse Gun Energy Cannon Beam Cannon Ballistic Gun Autogun Launcher EMP Blaster Special Weapon Remote Datajack Slashing Weapon Great Axe Build | -11 -10 -10 -9 -9 -9 -8 -8 -8 -8 -8 -8 -6 -6 -6 ------- Run | Scr Mat Min Mat Min Exi Min Mat Gar Mat Sto Rec Fac Ext Cet Slots Evolved 8 | . . . 2 . . . 2 . . . . 4 . . Power 1 | . . . . . . . . . . . . 1 . . Propulsion 2 | . . . . . . . 1 . . . . 1 . . Utility 5 | . . . 2 . . . 1 . . . . 2 . . Weapon . | . . . . . . . . . . . . . . . Parts Attached 128 | 6 11 2 7 2 2 . 10 16 8 3 . 35 22 4 Power 15 | 1 1 . 1 . . . 1 3 . . . 5 2 1 Engine 10 | 1 1 . 1 . . . 1 2 . . . 3 1 . Core 3 | . . . . . . . . 1 . . . 1 1 . Reactor 2 | . . . . . . . . . . . . 1 . 1 Propulsion 36 | 2 3 1 1 . 1 . 3 6 3 . . 8 5 3 Treads 11 | . . . . . . . 1 4 3 . . 3 . . Leg 4 | . . . . . . . . 2 . . . . 2 . Wheel 11 | 2 3 1 1 . 1 . 2 . . . . . 1 . Hover . | . . . . . . . . . . . . . . . Flight 10 | . . . . . . . . . . . . 5 2 3 Utility 37 | 1 3 . 3 . 1 . 2 1 4 1 . 12 9 . Device 8 | . . . 1 . . . . . . . . 2 5 . Storage 6 | 1 3 . . . 1 . . . . . . 1 . . Processor 3 | . . . . . . . . . . . . 1 2 . Hackware 6 | . . . . . . . . . . . . 5 1 . Protection 14 | . . . 2 . . . 2 1 4 1 . 3 1 . Artifact . | . . . . . . . . . . . . . . . Weapon 40 | 2 4 1 2 2 . . 4 6 1 2 . 10 6 . Energy Gun 12 | 1 3 . 1 . . . . 4 1 1 . . 1 . Energy Cannon 2 | . . . . . . . . . . . . 1 1 . Ballistic Gun 15 | 1 1 1 1 1 . . 2 2 . 1 . 4 1 . Ballistic Cannon . | . . . . . . . . . . . . . . . Launcher 4 | . . . . 1 . . 2 . . . . 1 . . Special Weapon 2 | . . . . . . . . . . . . 2 . . Impact Weapon . | . . . . . . . . . . . . . . . Slashing Weapon 5 | . . . . . . . . . . . . 2 3 . Piercing Weapon . | . . . . . . . . . . . . . . . Special Melee Weapon . | . . . . . . . . . . . . . . . Unidentified Prototypes 2 | . . . . . . . . . . . . 1 1 . Parts Lost 48 | . 3 1 6 1 . . 2 14 . . . 8 4 9 Power 10 | . 1 . 1 . . . 1 2 . . . 2 1 2 Propulsion 15 | . . 1 2 . . . 1 6 . . . 1 . 4 Utility 13 | . . . 2 1 . . . . . . . 5 2 3 Weapon 10 | . 2 . 1 . . . . 6 . . . . 1 . Highest Loss Streak 9 | . 2 1 6 7 . . 1 9 . . . 3 2 6 Average Slot Usage (%) 91 | . 94 100 95 66 87 88 93 93 98 100 100 88 92 60 Engine 5 | . 13 14 11 11 11 11 7 5 . . . 3 6 . Core 3 | . . . . . . . . 3 9 9 9 3 6 2 Treads 11 | . . . . . . . 8 15 27 27 27 19 . . Leg 1 | . . . . . . . . 4 . . . . 3 . Wheel 7 | . 27 28 21 11 22 22 17 3 . . . . 4 1 Flight 2 | . . . . . . . . . . . . 4 11 14 Device 1 | . . . 8 . . . . . . . . . 4 . Storage 21 | . 24 28 22 22 32 33 27 27 27 27 27 16 6 3 Hackware 5 | . . . . . . . . . . . . 6 29 28 Protection 10 | . . . 9 . . . 13 16 16 18 18 12 3 . Energy Gun 5 | . 14 14 11 . . . . 8 8 9 9 2 . . Ballistic Gun 10 | . 13 14 10 22 22 22 17 9 9 8 9 6 3 . Slashing Weapon 1 | . . . . . . . . . . . . 1 5 6 Naked Turns . | . . . . . . . . . . . . . . . Heaviest Build 78 | 11 39 38 42 39 47 47 57 57 56 57 57 78 31 28 Greatest Support 82 | 20 20 20 20 16 32 32 32 60 60 60 60 82 37 28 Greatest Overweight (x) 5 | . 3 1 2 2 2 1 5 3 . . . 4 1 1 Average Overweight (x) . | . . 1 1 2 1 1 1 1 . . . . . . Largest Inventory Capacity 20 | 6 16 16 16 16 20 20 20 20 20 20 20 20 8 8 Average Capacity 16 | 5 13 16 16 16 19 20 20 20 20 20 20 17 8 6 Most Carried 20 | 3 16 16 16 14 15 15 20 20 20 20 20 20 8 8 Average Carried 15 | 1 8 15 15 13 13 15 18 18 19 19 19 16 7 5 Final Capacity 20 | 6 16 16 16 16 20 20 20 20 20 20 20 8 8 4 Final Carried 20 | 3 16 16 13 14 15 15 19 20 20 20 20 6 8 4 Class Distribution -------------------- 36% | Scavenger-Mutant 27% | Hauler-Mutant 12% | Hacker-Mutant 11% | Mutant 5% | Commander-Mutant 5% | Hacker-Sprinter Dominant Class ---------------- Mutant | -10/Materials Mutant | -10/Mines Scavenger-Mutant | -9/Materials Mutant | -9/Mines Hauler-Mutant | -9/Exiles Hauler-Mutant | -8/Mines Hauler-Mutant | -8/Materials Hauler-Mutant | -8/Garrison Scavenger-Mutant | -8/Materials Commander-Mutant | -8/Storage Scavenger-Mutant | -8/Recycling Scavenger-Mutant | -6/Factory Hacker-Mutant | -6/Extension Hacker-Mutant | -6/Cetus Resources | -11 -10 -10 -9 -9 -9 -8 -8 -8 -8 -8 -8 -6 -6 -6 ----------- Run | Scr Mat Min Mat Min Exi Min Mat Gar Mat Sto Rec Fac Ext Cet Matter Collected 2574 | 263 190 95 78 32 . . 483 389 141 79 13 473 338 . Remotely . | . . . . . . . . . . . . . . . Salvage Created 5040 | 72 515 92 347 38 . . 811 776 441 286 34 857 726 45 Parts 287 | 3 40 14 21 4 . . 56 38 39 9 1 34 22 6 Haulers Intercepted 9 | . 1 . . . . . 1 . 1 1 . 2 3 . Recyclers Shooed 5 | . . 1 . . . . 1 . . . . 3 . . Parts Field Recycled . | . . . . . . . . . . . . . . . Retrieved Matter . | . . . . . . . . . . . . . . . Parts Self-Destructed . | . . . . . . . . . . . . . . . Prevented . | . . . . . . . . . . . . . . . Kills | -11 -10 -10 -9 -9 -9 -8 -8 -8 -8 -8 -8 -6 -6 -6 ------- Run | Scr Mat Min Mat Min Exi Min Mat Gar Mat Sto Rec Fac Ext Cet Combat Hostiles Destroyed 101 | . 16 6 8 3 . . 18 17 8 3 3 9 9 1 Melee 7 | . . . . . . . . . . . . . 6 1 Guns 79 | . 16 6 8 1 . . 14 15 7 1 3 7 1 . Cannons 4 | . . . . . . . . . . . . 2 2 . AOE 11 | . . . . 2 . . 4 2 1 2 . . . . Classes Destroyed 15 | 1 5 . 2 . . . 3 1 . 1 1 1 . . Worker 2 | . 1 . . . . . 1 . . . . . . . Builder 3 | . . . . . . . 1 . 2 . . . . . Hauler 9 | . 1 . . . . . 1 . 1 1 . 2 3 . Recycler 4 | 1 . . . . . . 1 . . 1 . 1 . . Operator 3 | . . . . . . . . . . 1 . 1 1 . Drone 3 | . . . . . . . . . . . 3 . . . Watcher 4 | . 1 . . . . . 2 . . . . . 1 . Swarmer 37 | . 9 6 . 3 . . 10 3 2 . . . 4 . Grunt 36 | . 7 . 6 . . . 2 7 1 3 . 5 5 . Brawler 1 | . . . . . . . 1 . . . . . . . Duelist 2 | . . . 1 . . . 1 . . . . . . . Protector 1 | . . . . . . . . 1 . . . . . . Sentry 16 | . . . 1 . . . 3 5 5 . . 2 . . Hunter 2 | . . . . . . . 1 1 . . . . . . Programmer 3 | . . . . . . . . . . . . 2 . 1 Best Kill Streak 9 | 1 9 3 4 7 . . 6 3 4 3 2 2 4 1 Combat Bots Only 8 | . 8 3 4 7 . . 6 3 4 3 2 2 4 1 Max Kills in Single Turn 3 | 1 2 1 1 2 . . 3 1 2 2 1 1 1 1 Gunslinging 1 | . 1 . . . . . 1 . 1 . . . . . Exploded 2 | . . . . 2 . . 2 1 1 2 . . . . Melee 1 | . . . . . . . . . . . . . 1 1 Uniques/NPCs Destroyed . | . . . . . . . . . . . . . . . Combat | -11 -10 -10 -9 -9 -9 -8 -8 -8 -8 -8 -8 -6 -6 -6 -------- Run | Scr Mat Min Mat Min Exi Min Mat Gar Mat Sto Rec Fac Ext Cet Damage Taken 6874 | . 278 91 485 72 . . 559 1652 264 144 23 1402 1044 860 Core 1429 | . 27 10 100 7 . . 76 317 24 . . 153 302 413 Absorbed by Shields 73 | . . . 73 . . . . . . . . . . . Core Remaining (%) 70 | 100 . 85 . . . 73 . . . . 24 . . . Volleys Fired 309 | 1 36 13 28 6 . . 45 75 16 14 4 61 10 . Largest 2 | 2 2 2 2 2 . . 2 2 2 2 2 2 2 . Hottest 103 | 60 70 60 60 53 . . 56 85 63 68 68 83 103 . Shots Fired 596 | 2 67 26 56 12 . . 90 141 32 27 8 116 19 . Gun 555 | 2 67 26 56 11 . . 87 141 32 27 8 87 11 . Cannon 34 | . . . . . . . . . . . . 26 8 . Launcher 4 | . . . . 1 . . 3 . . . . . . . Special 3 | . . . . . . . . . . . . 3 . . Kinetic 365 | 1 36 13 28 11 . . 87 80 16 13 4 69 7 . Thermal 98 | . 21 13 28 . . . . 6 . . . 26 4 . Explosive . | . . . . . . . . . . . . . . . Electromagnetic 130 | 1 10 . . 1 . . 3 55 16 14 4 18 8 . Robot Hit Streak 38 | 2 25 7 26 7 . . 37 22 31 38 6 26 32 . Robot Miss Streak 3 | . 1 3 1 1 . . 1 2 1 1 1 2 3 . Penetration Max 1 | . . . . . . . . . . . . 1 . . Secondary Targets 9 | . 2 . 2 . . . 1 3 1 . . . . . Max Gunslinging Chain 1 | . 1 . 1 . . . 1 1 1 . . . . . Shots Hit Robots 543 | 2 53 16 52 10 . . 76 122 29 23 5 118 35 2 Core Hits 222 | 2 26 8 21 3 . . 37 38 17 11 3 37 18 1 Critical Hits 2 | . . . . . . . 1 1 . . . . . . Critical Kills . | . . . . . . . . . . . . . . . Critical Parts Destroyed 2 | . . . . . . . 1 1 . . . . . . Melee Attacks 89 | . . . . . . . . . . . . 28 49 12 Impact . | . . . . . . . . . . . . . . . Slashing 89 | . . . . . . . . . . . . 28 49 12 Piercing . | . . . . . . . . . . . . . . . Sneak Attacks 9 | . . . . . . . . . . . . 2 7 . Combat Hostiles 2 | . . . . . . . . . . . . . 2 . Follow-up Attacks . | . . . . . . . . . . . . . . . Damage Inflicted 9872 | 27 752 157 494 200 . . 1240 1690 436 527 115 2420 1726 88 Guns 6187 | 27 664 157 494 92 . . 1048 1564 356 343 115 1223 104 . Cannons 579 | . . . . . . . . . . . . 417 162 . Explosions 752 | . 88 . . 108 . . 187 126 75 168 . . . . Melee 2319 | . . . . . . . . . . . . 780 1460 79 Ramming 35 | . . . . . . . 5 . 5 16 . . . 9 Kinetic 4133 | 14 317 60 200 92 . . 1048 909 173 198 43 1025 54 . Thermal 1664 | . 303 97 294 61 . . . 199 75 168 . 417 50 . Explosive . | . . . . . . . . . . . . . . . Electromagnetic 1721 | 13 132 . . 47 . . 187 582 183 145 72 198 162 . Impact . | . . . . . . . . . . . . . . . Slashing 2319 | . . . . . . . . . . . . 780 1460 79 Piercing . | . . . . . . . . . . . . . . . Highest Corruption 5 | . . . . . . . . . . . . 1 5 5 Average Corruption 2 | . . . . . . . . . . . . 1 2 5 Corruption Purged . | . . . . . . . . . . . . . . . Effects 25 | . . . . . . . . . . . . 4 17 4 Message Errors 9 | . . . . . . . . . . . . 3 5 1 Matter Fused 1 | . . . . . . . . . . . . . 1 . Energy Discharges 5 | . . . . . . . . . . . . . 4 1 Data Loss (minor) 4 | . . . . . . . . . . . . . 4 . Data Loss (major) 2 | . . . . . . . . . . . . . . 2 Misfires 1 | . . . . . . . . . . . . . 1 . Targeting Errors 3 | . . . . . . . . . . . . 1 2 . Overload Shots . | . . . . . . . . . . . . . . . Overflow Damage 184 | . . . . . . . 1 . . . . 27 156 . Projectiles . | . . . . . . . . . . . . . . . Explosions 1 | . . . . . . . 1 . . . . . . . Melee 183 | . . . . . . . . . . . . 27 156 . Knockbacks . | . . . . . . . . . . . . . . . Impact . | . . . . . . . . . . . . . . . Kinetic . | . . . . . . . . . . . . . . . Secondary . | . . . . . . . . . . . . . . . Self-Inflicted Damage 258 | . 21 . . 46 . . 2 44 22 29 . . 90 4 Shots 7 | . 1 . . 2 . . . 1 1 1 . . 1 . Rammed 4 | . . . . . . . 2 . 1 . . . . 1 Targets Rammed 6 | . . . . . . . 2 . 2 1 . . . 1 Kicked . | . . . . . . . . . . . . . . . Crushed 2 | . . . . . . . . . 1 1 . . . . Highest Temperature 362 | . 111 40 127 18 . . 12 97 133 193 18 362 91 16 Average Temperature 57 | . 35 24 54 16 . . 6 29 39 66 7 101 20 9 Received Heat Transfer 2216 | . 120 . 239 . . . 135 774 126 81 18 453 99 171 Effects 4 | . . . . . . . . . . . . 4 . . Energy Bleed 1 | . . . . . . . . . . . . 1 . . Interference 3 | . . . . . . . . . . . . 3 . . Siege Activations . | . . . . . . . . . . . . . . . Robots Corrupted . | . . . . . . . . . . . . . . . Combat Hostiles . | . . . . . . . . . . . . . . . Parts Fried 2 | . 1 . . . . . . . . . . 1 . . Impact Corruptions . | . . . . . . . . . . . . . . . Robots Melted . | . . . . . . . . . . . . . . . Combat Hostiles . | . . . . . . . . . . . . . . . Parts Melted 3 | . . . 1 . . . . 1 . . . 1 . . Heat Transferred 3154 | . 744 225 675 100 . . . 224 100 50 . 888 148 . Parts Sabotaged 3 | . . . . . . . . . . . . 3 . . Parts Stolen . | . . . . . . . . . . . . . . . Parts Stripped . | . . . . . . . . . . . . . . . Power Chain Reactions 6 | . 1 . . 1 . . . 2 1 1 . . . . Missiles Intercepted . | . . . . . . . . . . . . . . . Alert | -11 -10 -10 -9 -9 -9 -8 -8 -8 -8 -8 -8 -6 -6 -6 ------- Run | Scr Mat Min Mat Min Exi Min Mat Gar Mat Sto Rec Fac Ext Cet Peak Influence 1343 | 5 432 206 277 159 . . 484 826 459 462 359 1343 450 50 Initial 943 | . 2 76 67 84 . . . 216 346 118 152 943 358 39 Average 415 | 2 162 127 120 158 . . 257 509 375 282 184 1099 209 27 Maximum Alert Level 4 | . 2 1 1 . . . 2 3 2 2 1 4 2 . Low Security (%) 34 | 100 64 77 78 100 . 100 21 . . 13 60 . 68 100 Level 1 29 | . 29 22 21 . . . 70 33 56 60 39 . 23 . Level 2 14 | . 6 . . . . . 8 37 43 26 . . 8 . Level 3 12 | . . . . . . . . 27 . . . 45 . . Level 4 9 | . . . . . . . . . . . . 54 . . Level 5 . | . . . . . . . . . . . . . . . High Security . | . . . . . . . . . . . . . . . Max Security . | . . . . . . . . . . . . . . . Squads Dispatched 24 | . 2 1 1 . . . 4 . 4 1 . 8 3 . Investigation 12 | . 2 1 1 . . . 1 . 2 1 . 2 2 . Extermination 1 | . . . . . . . . . . . . 1 . . Reinforcement 4 | . . . . . . . . . 2 . . 1 1 . Assault 4 | . . . . . . . . . . . . 4 . . Garrison 3 | . . . . . . . 3 . . . . . . . Intercept . | . . . . . . . . . . . . . . . Construction Impeded . | . . . . . . . . . . . . . . . Haulers Reinforced . | . . . . . . . . . . . . . . . Stealth | -11 -10 -10 -9 -9 -9 -8 -8 -8 -8 -8 -8 -6 -6 -6 --------- Run | Scr Mat Min Mat Min Exi Min Mat Gar Mat Sto Rec Fac Ext Cet Distress Signals 14 | . 2 . . . . . 2 . 2 1 . 2 3 2 Communications Jammed . | . . . . . . . . . . . . . . . Distress Signals . | . . . . . . . . . . . . . . . Times Spotted 268 | . 20 8 18 4 . . 31 25 23 11 22 56 38 12 Peak Tracking Total 14 | . 5 3 7 3 . . 7 5 6 3 4 14 11 5 Tactical Retreats 18 | . . . . . . . 2 3 1 2 . 8 1 1 Traps | -11 -10 -10 -9 -9 -9 -8 -8 -8 -8 -8 -8 -6 -6 -6 ------- Run | Scr Mat Min Mat Min Exi Min Mat Gar Mat Sto Rec Fac Ext Cet Traps Triggered 16 | . 5 . . . . . 1 5 1 . . 2 2 . Indirectly . | . . . . . . . . . . . . . . . Trap Hack Attempts . | . . . . . . . . . . . . . . . Triggered . | . . . . . . . . . . . . . . . Disarmed . | . . . . . . . . . . . . . . . Reprogrammed . | . . . . . . . . . . . . . . . Reused . | . . . . . . . . . . . . . . . Traps Extracted . | . . . . . . . . . . . . . . . Installed . | . . . . . . . . . . . . . . . Triggered . | . . . . . . . . . . . . . . . Machines | -11 -10 -10 -9 -9 -9 -8 -8 -8 -8 -8 -8 -6 -6 -6 ---------- Run | Scr Mat Min Mat Min Exi Min Mat Gar Mat Sto Rec Fac Ext Cet Machines Disabled 15 | . . . . . . . . 3 . 1 9 . 1 1 Max in Single Turn 1 | . . . . . . . . 1 . 1 . . 1 1 Garrison Access 1 | . . . . . . . . . . . . 1 . . Garrison Relay 3 | . . . . . . . . 3 . . . . . . Energy Cycler 1 | . . . . . . . . . . . . . 1 . Machines Sabotaged . | . . . . . . . . . . . . . . . Garrisons Compromised . | . . . . . . . . . . . . . . . Overloaded Fab Kills . | . . . . . . . . . . . . . . . Fab Network Shutdowns 1 | . . . . . . . . . . . . 1 . . Hacking | -11 -10 -10 -9 -9 -9 -8 -8 -8 -8 -8 -8 -6 -6 -6 --------- Run | Scr Mat Min Mat Min Exi Min Mat Gar Mat Sto Rec Fac Ext Cet Machines Accessed 59 | . 5 1 1 . 3 . 5 . 8 5 9 8 13 1 Terminals 41 | . 5 1 . . . . 3 . 5 5 6 4 11 1 Fabricators 2 | . . . . . . . . . . . . 2 . . Repair Stations 3 | . . . . . . . 1 . 1 . . . 1 . Recycling Units 6 | . . . 1 . . . . . 1 . 3 . 1 . Scanalyzers 2 | . . . . . . . . . 1 . . 1 . . Garrison Access 2 | . . . . . . . 1 . . . . 1 . . Total Hacks 177 | . 10 3 1 . 3 . 15 . 18 18 35 30 43 1 Successful 129 | . 7 1 1 . 3 . 10 . 11 11 21 26 37 1 Failed 48 | . 3 2 . . . . 5 . 7 7 14 4 6 . Catastrophic 6 | . . . . . . . 1 . . 2 3 . . . Database Lockouts . | . . . . . . . . . . . . . . . Manual 95 | . 10 2 1 . 1 . 6 . 10 13 26 5 21 . Terminals 132 | . 10 3 . . . . 11 . 13 18 27 9 40 1 Fabricators 8 | . . . . . . . . . . . . 8 . . Repair Stations 8 | . . . . . . . 3 . 3 . . . 2 . Recycling Units 11 | . . . 1 . . . . . 1 . 8 . 1 . Scanalyzers 12 | . . . . . . . . . 1 . . 11 . . Garrison Access 3 | . . . . . . . 1 . . . . 2 . . Terminal Hacks 61 | . 5 1 . . 3 . 5 . 4 7 11 4 20 1 Record 4 | . . . . . 2 . . . . . . . 2 . Part Schematic 6 | . . . . . . . . . . . 5 . 1 . Robot Schematic 8 | . 1 . . . . . 2 . 1 1 1 1 1 . Robot Analysis 1 | . 1 . . . . . . . . . . . . . Prototype ID Bank 10 | . 2 . . . . . 1 . 1 3 2 . 1 . Open Door 3 | . . . . . . . . . . . . . 2 1 Branch Access Points 3 | . 1 . . . . . . . 1 1 . . . . Alert Level 5 | . . . . . . . . . 1 . 1 . 3 . Unreport Threat 7 | . . . . . . . . . . . 2 2 3 . Locate Traps 5 | . . . . . . . . . . 1 . . 4 . Security Status 1 | . . . . . . . . . . . . . 1 . Hauler Manifests 1 | . . . . . . . . . . . . 1 . . Registered Prototypes 2 | . . . . . . . 1 . . . . . 1 . Zone Layout 4 | . . 1 . . . . 1 . . 1 . . 1 . EX-Prototype ID Bank 1 | . . . . . 1 . . . . . . . . . Fabricator Hacks 6 | . . . . . . . . . . . . 6 . . Load Schematic 2 | . . . . . . . . . . . . 2 . . Build 4 | . . . . . . . . . . . . 4 . . Repair Station Hacks 6 | . . . . . . . 3 . 2 . . . 1 . Scan Component 3 | . . . . . . . 2 . 1 . . . . . Repair 2 | . . . . . . . 1 . 1 . . . . . Refit 1 | . . . . . . . . . . . . . 1 . Recycling Unit Hacks 5 | . . . . . . . . . . . 4 . 1 . Process 1 | . . . . . . . . . . . . . 1 . Report Inventory 3 | . . . . . . . . . . . 3 . . . Retrieve Components 1 | . . . . . . . . . . . 1 . . . Scanalyzer 12 | . . . . . . . . . 1 . . 11 . . Insert Component 6 | . . . . . . . . . 1 . . 5 . . Analyze 6 | . . . . . . . . . . . . 6 . . Garrison Access Hacks 3 | . . . . . . . 1 . . . . 2 . . Unlock Access 1 | . . . . . . . 1 . . . . . . . Seal Access 1 | . . . . . . . . . . . . 1 . . Coupler Status 1 | . . . . . . . . . . . . 1 . . Unauthorized Hacks 36 | . 2 . 1 . . . 1 . 4 4 6 3 15 . Terminals 30 | . 2 . . . . . 1 . 3 4 3 2 15 . Assimilate 1 | . . . . . . . . . . . . 1 . . Botnet 15 | . 2 . . . . . 1 . 3 2 3 . 4 . Detonate 3 | . . . . . . . . . . . . . 3 . Disrupt 9 | . . . . . . . . . . 2 . 1 6 . Sabotage 1 | . . . . . . . . . . . . . 1 . Search 1 | . . . . . . . . . . . . . 1 . Fabricators 1 | . . . . . . . . . . . . 1 . . Haulers 1 | . . . . . . . . . . . . 1 . . Repair Stations . | . . . . . . . . . . . . . . . Recycling Units 5 | . . . 1 . . . . . 1 . 3 . . . Tunnel 5 | . . . 1 . . . . . 1 . 3 . . . Scanalyzers . | . . . . . . . . . . . . . . . Garrison Access . | . . . . . . . . . . . . . . . Data Cores Recovered 2 | . . . . . . . . . . 1 . 1 . . Used . | . . . . . . . . . . . . . . . Hacking Detections 43 | . 5 1 . . . . 4 . 6 5 7 6 9 . Full Trace Events 8 | . 1 1 . . . . 1 . 2 1 1 1 . . Feedback Events . | . . . . . . . . . . . . . . . Feedback Blocked . | . . . . . . . . . . . . . . . Robot Schematics Acquired 8 | . 1 . . . . . 2 . 1 1 1 1 1 . Robots Built 4 | . . . . . . . . . . . . 4 . . Matter 372 | . . . . . . . . . . . . 372 . . Time 198 | . . . . . . . . . . . . 198 . . Total Robot Build Rating 8 | . . . . . . . . . . . . 8 . . Part Schematics Acquired 10 | . . . . . . . . . . . 5 4 1 . Parts Built . | . . . . . . . . . . . . . . . Matter . | . . . . . . . . . . . . . . . Time . | . . . . . . . . . . . . . . . Total Part Build Rating . | . . . . . . . . . . . . . . . Parts Repaired 2 | . . . . . . . 1 . 1 . . . . . Time 26 | . . . . . . . 13 . 13 . . . . . Parts Recycled . | . . . . . . . . . . . . . . . Recycled Matter . | . . . . . . . . . . . . . . . Retrieved Matter . | . . . . . . . . . . . . . . . Retrieved Components 3 | . . . . . . . . . . . 3 . . . Parts Scanalyzed 5 | . . . . . . . . . . . . 5 . . Part Schematics Acquired 4 | . . . . . . . . . . . . 4 . . Parts Damaged 1 | . . . . . . . . . . . . 1 . . Bothacking | -11 -10 -10 -9 -9 -9 -8 -8 -8 -8 -8 -8 -6 -6 -6 ------------ Run | Scr Mat Min Mat Min Exi Min Mat Gar Mat Sto Rec Fac Ext Cet Used RIF Installer 1 | . . . . . . . . 1 . . . . . . Robots Hacked 2 | . . . . . . . . . . . . 2 . . Non-combat . | . . . . . . . . . . . . . . . Combat 2 | . . . . . . . . . . . . 2 . . Robot Hacks Applied 2 | . . . . . . . . . . . . 2 . . overload_power 1 | . . . . . . . . . . . . 1 . . wipe_record 1 | . . . . . . . . . . . . 1 . . Relay Couplers Released 12 | . . . . . . . . 12 . . . . . . Machine Destruction 12 | . . . . . . . . 12 . . . . . . Attached 2 | . . . . . . . . . . . . 2 . . Robots Rewired 15 | . . . . . . . . . . . . 1 14 . Allies Hacked . | . . . . . . . . . . . . . . . Hacks Repelled . | . . . . . . . . . . . . . . . Allies | -11 -10 -10 -9 -9 -9 -8 -8 -8 -8 -8 -8 -6 -6 -6 -------- Run | Scr Mat Min Mat Min Exi Min Mat Gar Mat Sto Rec Fac Ext Cet Total Allies 32 | . . . . . . . . . . 10 . 5 17 . Largest Group 10 | . . . . . . . . . . 10 9 8 10 . Highest-Rated Group 324 | . . . . . . . . . . 173 157 137 324 . Highest-Rated Ally 37 | . . . . . . . . . . 29 29 32 37 . Total Orders . | . . . . . . . . . . . . . . . Ally Attacks 312 | . . . . . . . . . . 55 92 68 97 . Total Damage 4899 | . . . . . . . . . . 763 1369 1101 1666 . Kills 65 | . . . . . . . . . . 9 29 7 20 . Allies Corrupted 1 | . . . . . . . . . . . . . 1 . Allies Melted 2 | . . . . . . . . . . . . . 2 . Intel | -11 -10 -10 -9 -9 -9 -8 -8 -8 -8 -8 -8 -6 -6 -6 ------- Run | Scr Mat Min Mat Min Exi Min Mat Gar Mat Sto Rec Fac Ext Cet Robot Analysis Total 1 | . 1 . . . . . . . . . . . . . Derelict Logs Recovered 1 | . . . . 1 . . . . . . . . . . Drone Launches . | . . . . . . . . . . . . . . . Drone Recoveries . | . . . . . . . . . . . . . . . Exploration | -11 -10 -10 -9 -9 -9 -8 -8 -8 -8 -8 -8 -6 -6 -6 ------------- Run | Scr Mat Min Mat Min Exi Min Mat Gar Mat Sto Rec Fac Ext Cet Turns Passed 8280 | 42 443 261 305 285 357 185 658 1334 840 337 486 1370 1183 194 Spaces Moved 5504 | 34 304 236 188 215 322 167 338 573 414 169 290 931 1091 232 Core 120 | 1 2 . . . . . . . . . . . . 117 Treads 1945 | . . . . . . . 124 501 414 169 290 447 . . Legs 12 | . . . . . . . . 12 . . . . . . Wheels 2376 | 33 302 236 188 215 322 167 214 60 . . . . 583 56 Hover . | . . . . . . . . . . . . . . . Flight 1051 | . . . . . . . . . . . . 484 508 59 Fastest Speed 27 | 50 80 90 90 120 110 110 110 110 160 160 160 27 27 28 Average Speed 110 | 79 88 90 99 120 110 110 137 172 160 160 160 93 67 59 Slowest Speed 315 | 80 200 90 120 120 120 110 185 210 160 160 160 315 110 107 Overloaded Moves . | . . . . . . . . . . . . . . . Propulsion Burnouts . | . . . . . . . . . . . . . . . Robots Hopped 16 | . . . . . . . . . . . . 11 1 4 Cave-ins Triggered 1 | . . . . . . . . . . . . . 1 . Exploration Rate (%) 54 | 3 67 74 19 32 77 76 34 62 41 41 89 32 81 92 Regions Visited 14 Branch Regions 8 Pre-discovered Areas 6 | . . . 1 . 1 . . . 1 . 3 . . . Known Exits Taken 4 | . 1 . . . . . 1 . 1 1 . . . . Unknown Exits Taken 9 | 1 . 1 1 1 1 1 . . . . 1 1 1 . Scrap Searched 1 | . . 1 . . . . . . . . . . . . Spaces Dug 37 | . . . . . . . . . . . . 10 26 1 Terrain Destroyed 82 | . 3 . . 6 . . . 9 7 2 . 10 44 1 Melee 37 | . . . . . . . . . . . . 10 26 1 Projectile . | . . . . . . . . . . . . . . . AOE 45 | . 3 . . 6 . . . 9 7 2 . . 18 . Terrain Rammed . | . . . . . . . . . . . . . . . Walls Destroyed . | . . . . . . . . . . . . . . . Machines Disabled . | . . . . . . . . . . . . . . . Actions | -11 -10 -10 -9 -9 -9 -8 -8 -8 -8 -8 -8 -6 -6 -6 --------- Run | Scr Mat Min Mat Min Exi Min Mat Gar Mat Sto Rec Fac Ext Cet Total 7003 | 44 407 264 258 231 324 168 455 792 565 211 305 1274 1438 267 Wait 693 | . 44 4 23 5 . 2 48 95 112 18 8 174 140 20 Move 5461 | 33 303 235 187 214 321 166 337 571 413 168 289 911 1087 226 Hop 11 | . . . . . . . . . . . . 8 1 2 Pick Up 103 | 4 13 5 6 2 1 . 11 18 5 3 2 21 12 . Fast Attach 47 | 5 7 1 2 . . . 3 2 4 1 . 12 10 . Attach 54 | 1 2 1 5 1 2 . 3 14 1 1 . 13 6 4 Detach 15 | . . . 1 . . . . 1 . . . 8 5 . Swap 27 | . 2 . . 1 . . 4 . 3 1 . 10 6 . Drop 72 | . . 5 6 . . . 2 6 9 4 2 18 18 2 Fire 309 | 1 36 13 28 6 . . 45 75 16 14 4 61 10 . Melee 89 | . . . . . . . . . . . . 28 49 12 Ram 3 | . . . . . . . 2 . . . . . . 1 Kick . | . . . . . . . . . . . . . . . Crush 3 | . . . . . . . . . 2 1 . . . . Escape Stasis 47 | . . . . . . . . 10 . . . . 37 . Rewire 69 | . . . . 2 . . . . . . . 10 57 . Trap . | . . . . . . . . . . . . . . . Miscellaneous . | . . . . . . . . . . . . . . . Route ------- -11/Scrapyard -10/Materials -10/Mines (discovered 2 exits: *Mat x2) -9/Materials -9/Mines -9/Exiles -8/Mines -8/Materials (discovered 2 exits: *Sto / Gar) -8/Garrison (discovered 3 exits: *Mat x3) -8/Materials -8/Storage -8/Recycling -6/Factory (discovered 2 exits: [*Low] / *Ext) -6/Extension (discovered 2 exits: [*Fac] / *Cet) -6/Cetus (discovered 3 exits: [*Fac x2] / [*Arc]) History --------- Turn | Location | Event 15 | -11/Scrapyard | Discovered new exit (range 16) 43 | -11/Scrapyard | Entered Materials 305 | -10/Materials | Build established: Mutant 379 | -10/Materials | Destroyed 8 combat bots 383 | -10/Materials | Identified exit to Mines 486 | -10/Materials | Entered Mines 601 | -10/Mines | Discovered new exit (range 15) 696 | -10/Mines | Discovered new exit (range 11) 711 | -10/Mines | Joined a pair of Derelicts in attacking an 0b10 outpost 747 | -10/Mines | Entered Materials 747 | -9/Materials | Evolved 2 slots: Utility x2 956 | -9/Materials | Discovered new exit (range 15) 982 | -9/Materials | Build established: Scavenger-Mutant 1052 | -9/Materials | Entered Mines 1053 | -9/Mines | Assembled infested the area 1080 | -9/Mines | Discovered new exit (range 5) 1084 | -9/Mines | Destroyed 7 combat bots 1084 | -9/Mines | Lost 7 parts (1p2n3u1w) 1101 | -9/Mines | Found a hidden stash of uninstalled traps 1197 | -9/Mines | A weapon hastily lodged in a ceiling crevice suddenly fell to the ground 1310 | -9/Mines | Learned location of 1 exit from Lower Caves 1337 | -9/Mines | Entered Exiles 1366 | -9/Exiles | Met 8R-AWN 1385 | -9/Exiles | Met EX-HEX 1417 | -9/Exiles | Met EX-BIN 1433 | -9/Exiles | Aligned with FarCom system 1434 | -9/Exiles | Given EX-Vault access code 1459 | -9/Exiles | Opened EX-Vault 1467 | -9/Exiles | Found AWS/Autocannon 1489 | -9/Exiles | Warned to stay clear of 0b10 Research branches 1522 | -9/Exiles | Met EX-DEC 1533 | -9/Exiles | Learned location of Zion (-6) 1577 | -9/Exiles | Visited The Gauntlet 1640 | -9/Exiles | Build established: Hauler-Mutant 1682 | -9/Exiles | Discovered new exit (range 12) 1694 | -9/Exiles | Left Exiles lab with AWS/Autocannon 1694 | -9/Exiles | Entered Mines 1872 | -8/Mines | Discovered new exit (range 6) 1879 | -8/Mines | Entered Materials 1879 | -8/Materials | Evolved 2 slots: Propulsion x1, Utility x1 2136 | -8/Materials | Garrison activated, responded to threat 2168 | -8/Materials | Discovered new exit (range 16) 2324 | -8/Materials | Repaired Wheel 2536 | -8/Materials | Identified exit to Garrison 2537 | -8/Materials | Entered Garrison 2672 | -8/Garrison | Lost 4 parts (1p1n2w) 2752 | -8/Garrison | Triggered checkpoint 2791 | -8/Garrison | Garrison Relay disabled 2854 | -8/Garrison | Triggered checkpoint 2916 | -8/Garrison | Triggered checkpoint 2930 | -8/Garrison | Core integrity fell below 50% 2982 | -8/Garrison | Lost 9 parts (1p4n4w) 3154 | -8/Garrison | Triggered checkpoint 3204 | -8/Garrison | Triggered checkpoint 3265 | -8/Garrison | Discovered new exit (range 8) 3284 | -8/Garrison | Triggered checkpoint 3321 | -8/Garrison | Garrison Relay disabled 3459 | -8/Garrison | Build established: Scavenger-Mutant 3520 | -8/Garrison | Triggered checkpoint 3560 | -8/Garrison | Garrison Relay disabled 3650 | -8/Garrison | Discovered new exit (range 10) 3820 | -8/Garrison | Build established: Hauler-Mutant 3821 | -8/Garrison | Discovered new exit (range 15) 3863 | -8/Garrison | Installed Relay Interface Framework 3871 | -8/Garrison | Entered Materials 3945 | -8/Materials | Repaired EM Pulse Gun 4314 | -8/Materials | Build established: Scavenger-Mutant 4499 | -8/Materials | Identified exit to Storage 4711 | -8/Materials | Entered Storage 4828 | -8/Storage | Assisted by bots powering up and referring to "LRC-V3" 4981 | -8/Storage | Identified exit to Recycling 5036 | -8/Storage | Used back door to open Recycling access 5048 | -8/Storage | Entered Recycling 5048 | -8/Recycling | Accompanied by 9 allies 5079 | -8/Recycling | Spotter reported a threat 5081 | -8/Recycling | Spotter reported a threat 5081 | -8/Recycling | Spotter reported a threat 5082 | -8/Recycling | Spotter reported a threat 5096 | -8/Recycling | Spotter reported a threat 5102 | -8/Recycling | Spotter reported a threat 5120 | -8/Recycling | Spotter reported a threat 5123 | -8/Recycling | Spotter reported a threat 5134 | -8/Recycling | Spotter reported a threat 5136 | -8/Recycling | Build established: Commander-Mutant 5174 | -8/Recycling | Spotter reported a threat 5174 | -8/Recycling | Spotter reported a threat 5174 | -8/Recycling | Spotter reported a threat 5176 | -8/Recycling | Spotter reported a threat 5298 | -8/Recycling | Spotter reported a threat 5321 | -8/Recycling | Spotter reported a threat 5333 | -8/Recycling | Spotter reported a threat 5351 | -8/Recycling | Spotter reported a threat 5386 | -8/Recycling | Spotter reported a threat 5386 | -8/Recycling | Spotter reported a threat 5427 | -8/Recycling | Spotter reported a threat 5427 | -8/Recycling | Spotter reported a threat 5427 | -8/Recycling | Spotter reported a threat 5428 | -8/Recycling | Spotter reported a threat 5466 | -8/Recycling | Spotter reported a threat 5466 | -8/Recycling | Spotter reported a threat 5466 | -8/Recycling | Spotter reported a threat 5466 | -8/Recycling | Spotter reported a threat 5485 | -8/Recycling | Discovered new exit (range 16) 5509 | -8/Recycling | Spotter reported a threat 5509 | -8/Recycling | Spotter reported a threat 5509 | -8/Recycling | Spotter reported a threat 5509 | -8/Recycling | Spotter reported a threat 5528 | -8/Recycling | Build established: Scavenger-Mutant 5534 | -8/Recycling | Entered Factory 5534 | -6/Factory | Accompanied by 4 allies 5534 | -6/Factory | Evolved 4 slots: Power x1, Propulsion x1, Utility x2 5712 | -6/Factory | Fabricated Y-45 Defender (x2) 5821 | -6/Factory | Fabricated Y-45 Defender? 5884 | -6/Factory | First assault squad dispatched 6024 | -6/Factory | Local fabrication network quarantined 6761 | -6/Factory | Lost 3 parts (3u) 6886 | -6/Factory | Discovered new exit (range 10) 6886 | -6/Factory | Discovered new exit (range 10) 6904 | -6/Factory | Entered Extension 6919 | -6/Extension | Found Prototype Device 6924 | -6/Extension | Identified Exp. Sensor Array 6993 | -6/Extension | Rescued a captive Derelict 7024 | -6/Extension | Build established: Hacker-Sprinter 7052 | -6/Extension | Energy Cycler disabled 7052 | -6/Extension | Rescued a captive Derelict 7052 | -6/Extension | Rescued a captive Derelict 7053 | -6/Extension | Rescued a captive Derelict 7053 | -6/Extension | Rescued a captive Derelict 7054 | -6/Extension | Rescued a captive Derelict 7054 | -6/Extension | Rescued a captive Derelict 7056 | -6/Extension | Rescued a captive Derelict 7059 | -6/Extension | Rescued a captive Derelict 7060 | -6/Extension | Rescued a captive Derelict 7449 | -6/Extension | Build established: Hacker-Mutant 7543 | -6/Extension | Crushed by falling debris 7895 | -6/Extension | Discovered new exit (range 10) 7896 | -6/Extension | Discovered new exit (range 6) 8079 | -6/Extension | Disrupted transfer network 8080 | -6/Extension | Disrupted transfer network 8083 | -6/Extension | Core integrity fell below 50% 8087 | -6/Extension | Entered Cetus 8101 | -6/Cetus | Spotted Cetus Guard 8101 | -6/Cetus | Spotted Cetus Guard 8102 | -6/Cetus | Spotted Cetus Guard 8107 | -6/Cetus | Spotted Cetus Guard 8125 | -6/Cetus | Discovered new exit (range 16) 8138 | -6/Cetus | Lost 3 parts (1p1u1w) 8213 | -6/Cetus | Lost 6 parts (2p3n1u) 8255 | -6/Cetus | Discovered new exit (range 16) 8258 | -6/Cetus | Core integrity fell below 20% 8273 | -6/Cetus | Spotted Cetus Guard 8273 | -6/Cetus | Spotted Cetus Guard 8273 | -6/Cetus | Spotted Cetus Guard 8275 | -6/Cetus | Discovered new exit (range 16) 8276 | -6/Cetus | Spotted Cetus Guard 8281 | -6/Cetus | Destroyed by Cetus Guard with Improved KE Penetrator Last Messages --------------- 08206_ Connecting with Cetus Manufacturing Controls... 08215_ Cetus Mainframe disabled. 08246_ System corrupted: Energy discharge (-28). 08254_ C-30 ARC bursts open, deploying its payload. 08254_ P-60 Hacker unfolds itself. 08254_ Hacking Suite destroyed. 08255_ EXIT=FOUND 08260_ P-60 Hacker Remote Datajack severed. 08262_ P-60 Hacker destroyed. 08272_ RRHWP6IR& 9%JBM42AE5NU/IOS C= 08281_ Penetrated by Slug. Map ----- +----------------------------------------------------+ | | | | | | | | | | | | | | | | | | | | | | | | | | | | | | | | | ????????????????????????????????????????? | | ????????????????????????????????????????? | | ???????????????????????##???????????????? | | ??????????????????????##;#??????????????? | | ??????????????????????# #?????????????? | | ?????????????????????## < ##????????????? | | ?????????????????????#; ;#????????????? | | ??????????????????????# ;#????????????? | | ?????????????????????## ;# #??????????? | | ?????????????????????# =@ ;#???????????? | | ?????????????????????# % ##???????????? | | ?????????????????????# Y #????????????? | | ?????????????????????##YYY##????????????? | | ??????????????????????# ;#????????????? | | ??????????????????????# ##????????????? | | ??????????????????????# #?????????????? | | ??????????????????????# #?????????????? | | ??????????????????????# #?????????????? | | ??????????????????????# #?????????????? | | ??????????????????????# #?????????????? | | ??????????????????????# #?????????????? | | ??????????????????????# #?????????????? | | ??????????????????????# #?????????????? | | ??????????????????????# #?????????????? | | ??????????????????????# #?????????????? | | ??????????????????????# "?????????????? | | ??????????????????????# #?????????????? | | ??????????????????????# #?????????????? | | ??????????????????????# #?????????????? | | ??????????????????????# #?????????????? | | ??????????????????????# #?????????????? | | ####??????????????????# #?????????????? | | """"##????????????????# #?????????????? | | "?#"????????????????# #?????????????? | +----------------------------------------------------+ Best States ------------- Heat Dissipation 37 Energy Generation 34 Energy Capacity 275 Matter Stores 300 Matter Capacity 300 Sight Range 16 Terrain Scan Density 110 Additional Mass Support 9 Armor Coverage 525 Resistance: KI 20 Resistance: TH 20 Resistance: EX 20 Resistance: EM 20 Resistance: I 20 Resistance: S 20 Resistance: P 20 Core Shielding 20 Evasion (%) 70 Recoil Reduction 4 Offensive Hacking 30 Defensive Hacking 10 Relay Coupler Types 55 Relay Coupler Value 2 Item Schematics ----------------- Imp. Flight Unit | -8/Recycling | Hacked Hacking Suite | -8/Recycling | Hacked Med. Storage Unit | -8/Recycling | Hacked EM Pulse Gun | -8/Recycling | Hacked Datajack | -8/Recycling | Hacked Cesium-ion Thruster | -6/Factory | Scanalyzed EM Pulse Cannon | -6/Factory | Scanalyzed Adv. Weight Redist. System | -6/Factory | Scanalyzed Imp. Datajack | -6/Factory | Scanalyzed Falx | -6/Extension | Hacked Robot Schematics ------------------ G-34 Mercenary | -10/Materials | Hacked S-10 Pest | -8/Materials | Hacked W-25 Informer | -8/Materials | Hacked Y-45 Defender | -8/Materials | Hacked O-24 Administrator | -8/Storage | Hacked A-02 Transporter | -8/Recycling | Hacked B-48 Gladiator | -6/Factory | Hacked H-66 Slayer | -6/Extension | Hacked Fabricated ------------ Y-45 Defender | x2 | -6/Factory Y-45 Defender | x2 | -6/Factory Alien Tech Used ----------------- None Achievements -------------- Cya! Deadly Force Part-time Excavator \\IAMDERELICT Challenges ------------ None Game ------ Seed ChainSwordStorm Manual? 0 Play Time 02:38:19 Cumulative 51.1 hours Start 2020.10.10 @ 00:09:38 End 2020.10.10 @ 03:10:41 Sessions 2 Manual Loads 0 Difficulty Adventurer Special Mode None Game No. 5 Rogue 0 Adventurer 5 Explorer 0 Win Type - Total 0 Types 0/0/0/0/0/0/0/0/0 Lore% 23 Gallery% 31 Achievement% 31 Wizard Run 0 Options --------- ASCII 0 Keyboard 1 Movement Vi Keybinds 0 Fullscreen 0 Font 14/SmallcapsGlow Map View 84x54 Tactical HUD 1 Map Filters NONE Filters NONE Steam 1 RUN: d826db92-29e4-4527-b2b6-81c387318730